bitfinex/quotes_ETHUSD_20240603
["timestamp","ask_amount","ask_price","bid_price","bid_amount"]
[1717386614636,9.66451384,3805.0,3804.9,7.04e-06]
[1717386615170,2.62901,3803.7,3803.6,2.3288]
[1717386615476,3.19734125,3803.7,3803.6,2.3288]
[1717386615675,3.19734125,3803.7,3803.6,2.54753982]
[1717386616368,4.03737538,3803.7,3803.6,2.54753982]
[1717386616538,4.03737538,3803.7,3803.6,0.21873982]
[1717386616740,4.03737538,3803.7,3803.4,2.3288]
[1717386617037,2.62915,3803.5,3803.4,2.3288]
[1717386622595,2.62889,3803.9,3803.4,2.3288]
[1717386622796,0.56836998,3803.8,3803.4,2.54759942]
[1717386623008,0.56836998,3803.8,3803.4,2.58355994]
[1717386623219,0.56836998,3804.2,3803.6,0.473]
[1717386623502,0.56836998,3804.2,3803.5,0.76879329]
[1717386623503,7.28,3804.4,3804.2,2.3612]
[1717386623701,7.28,3804.4,3804.2,2.64462]
[1717386624431,7.28,3804.4,3804.2,2.3612]
[1717386624698,7.753,3804.4,3804.3,0.21886433]
[1717386625056,7.753,3804.4,3804.2,2.3612]
[1717386625573,0.473,3804.4,3804.3,0.21886433]
[1717386625960,0.473,3804.4,3804.2,2.3612]
[1717386626357,3.10159,3804.4,3804.2,2.3612]
[1717386626669,0.56832733,3804.3,3803.9,2.3187]
[1717386626998,0.473,3804.1,3804.0,0.21868979]
[1717386627295,0.473,3804.1,3803.9,2.3187]
[1717386629887,0.473,3804.1,3803.3,2.2827]
[1717386630083,0.473,3804.1,3803.4,0.21881397]
[1717386630768,3.1018,3804.1,3803.4,0.21881397]
[1717386630974,2.62896,3803.8,3803.4,0.21881397]
[1717386631507,0.56832733,3803.7,3803.4,0.21881397]
[1717386632190,1.04132733,3803.7,3803.4,0.21881397]
[1717386633186,0.56832733,3803.7,3803.4,0.21881397]
[1717386637071,0.56832733,3803.7,3803.5,2.471]
[1717386637276,2.62896,3803.8,3803.5,2.7872814]
[1717386637479,2.62896,3803.8,3803.6,0.24639879]
[1717386642216,0.56834822,3803.7,3803.6,0.24639879]
[1717386642509,2.62896,3803.8,3803.6,0.24639879]
[1717386645431,0.56836145,3803.7,3803.6,0.24639879]
[1717386645599,2.62909,3803.6,3803.2,2.3664]
[1717386647496,0.56839087,3803.5,3803.2,2.3664]
[1717386648086,2.62909,3803.6,3803.2,2.3664]
[1717386649798,0.56838435,3803.5,3803.2,2.3664]
[1717386650320,2.62909,3803.6,3803.2,2.3664]
[1717386650623,2.62882,3804.0,3803.2,3.12334]
[1717386650938,0.56832077,3803.9,3803.3,2.3009]
[1717386651136,2.629,3803.8,3803.3,2.3009]
[1717386651343,0.473,3803.6,3803.3,2.3009]
[1717386651791,0.473,3803.6,3803.4,0.24632514]
[1717386653611,0.473,3803.6,3803.0,2.2519]
[1717386653823,0.473,3803.6,3803.5,0.24631828]
[1717386654122,0.473,3803.6,3803.0,2.2519]
[1717386654915,0.473,3803.6,3803.1,0.24634571]
[1717386658227,2.62917,3803.5,3803.1,0.24634571]
[1717386658528,0.56832077,3803.4,3803.1,0.24634571]
[1717386660635,0.56838927,3803.4,3803.1,0.24634571]
[1717386661011,0.56838927,3803.4,3803.2,2.2688]
[1717386661222,0.56838927,3803.8,3803.2,2.51537187]
[1717386661425,0.56838927,3803.8,3803.2,2.2688]
[1717386661622,0.56834895,3803.8,3803.2,2.2688]
[1717386664005,0.56834895,3803.8,3803.3,0.24646306]
[1717386666641,0.56834895,3803.8,3803.4,2.4259]
[1717386666842,0.56834895,3804.2,3803.4,2.67230523]
[1717386668741,0.473,3804.1,3803.4,2.67230523]
[1717386670959,0.56829973,3804.2,3803.6,0.473]
[1717386671126,0.56829973,3804.2,3803.8,2.4888]
[1717386671337,0.56829973,3804.2,3803.9,0.24610885]
[1717386672863,1.04129973,3804.2,3803.9,0.24610885]
[1717386673157,0.473,3804.0,3803.9,0.24610885]
[1717386673352,0.473,3804.0,3803.4,2.3743]
[1717386673530,0.473,3804.0,3803.9,0.24593048]
[1717386673734,0.83999197,3804.0,3803.4,2.3743]
[1717386674045,3.10184,3804.0,3803.5,0.24599066]
[1717386674226,0.56829973,3803.9,3803.5,0.24599066]
[1717386674858,0.473,3803.8,3803.5,0.24599066]
[1717386675265,0.473,3803.8,3803.2,2.4328]
[1717386675437,0.473,3803.8,3803.6,0.2459838]
[1717386675759,0.473,3803.8,3803.7,0.24597695]
[1717386676060,0.473,3803.8,3803.2,2.4328]
[1717386676674,0.473,3803.8,3803.3,0.24600437]
[1717386677175,0.473,3803.6,3803.3,0.24600437]
[1717386677465,1.04129973,3803.6,3803.3,0.24600437]
[1717386677977,1.04129973,3803.6,3803.2,2.4328]
[1717386678127,1.04129973,3803.6,3803.4,0.24599752]
[1717386678429,1.04129973,3803.6,3803.2,2.4328]
[1717386678627,0.56829973,3803.6,3803.2,2.4328]
[1717386678850,0.56829973,3803.6,3803.3,0.24600437]
[1717386679064,0.56829973,3803.6,3803.2,2.4328]
[1717386679439,0.56829973,3803.6,3803.3,0.24600437]
[1717386679832,0.56829973,3803.6,3803.2,2.4328]
[1717386680235,0.56829973,3803.6,3803.3,0.24600437]
[1717386680643,0.56829973,3803.6,3803.2,2.4328]
[1717386680970,0.56829973,3803.6,3803.3,0.24600437]
[1717386681344,0.56829973,3803.6,3803.2,2.4328]
[1717386681523,0.56829973,3803.6,3803.3,0.24600437]
[1717386681724,0.56829973,3803.6,3803.2,2.4328]
[1717386681953,0.56829973,3803.6,3803.3,0.24600437]
[1717386682154,2.62903,3803.7,3803.2,2.4328]
[1717386682366,2.62903,3803.7,3803.3,0.24600437]
[1717386682665,2.62903,3803.7,3803.2,2.4328]
[1717386682826,0.56837958,3803.6,3803.2,2.4328]
[1717386683032,0.56837958,3803.6,3803.3,0.24614997]
[1717386683565,0.56837958,3803.6,3803.2,2.4328]
[1717386683773,0.56837958,3803.6,3803.3,0.24614997]
[1717386684077,0.56837958,3803.6,3803.2,2.4328]
[1717386684433,2.939233,3803.7,3803.3,0.24614997]
[1717386684633,0.56839488,3803.6,3803.2,2.4328]
[1717386684942,0.56839488,3803.6,3803.3,0.24614997]
[1717386685146,0.56839488,3803.6,3803.2,2.4328]
[1717386685461,0.56839488,3803.6,3803.3,0.24614997]
[1717386685838,0.56839488,3803.6,3803.2,2.4328]
[1717386686132,0.56839488,3803.6,3803.3,0.24614997]
[1717386686356,0.56839488,3803.6,3803.2,2.4328]
[1717386686557,0.56839488,3803.6,3803.3,0.24614997]
[1717386686771,2.62915,3803.5,3802.8,2.4493]
[1717386686964,0.56839488,3803.4,3802.9,0.24617741]
[1717386693844,2.62915,3803.5,3802.9,0.24617741]
[1717386696697,0.56839189,3803.4,3802.9,0.24617741]
[1717386699187,2.62915,3803.5,3802.9,0.24617741]
[1717386699490,0.5683873,3803.4,3802.9,0.24617741]
[1717386707919,0.56840375,3803.4,3802.9,0.24617741]
[1717386708717,0.93545912,3803.4,3802.9,0.24617741]
[1717386708885,0.36705537,3803.4,3802.9,0.24617741]
[1717386709083,0.93546,3803.4,3802.5,5.43062]
[1717386709286,0.56840463,3803.4,3803.0,0.24621425]
[1717386709488,0.56840463,3803.4,3802.6,0.55]
[1717386709971,0.56840463,3803.4,3802.7,0.24623483]
[1717386711111,2.6293,3803.3,3802.7,0.24623483]
[1717386711312,3.10254,3803.0,3802.7,0.24623483]
[1717386711528,3.10254,3803.0,3802.1,2.63008]
[1717386711529,0.56840463,3802.9,3802.2,2.2718]
[1717386711980,0.56840463,3802.9,3802.3,0.24626227]
[1717386715783,3.10265,3802.8,3802.3,0.24626227]
[1717386715984,0.56840463,3802.7,3801.9,2.4101]
[1717386716184,0.56840463,3802.7,3802.0,0.79628285]
[1717386718020,0.56840463,3802.7,3802.0,0.24628285]
[1717386720619,2.62983,3802.6,3802.0,0.24628285]
[1717386721927,0.5685628,3802.5,3802.0,0.24628285]
[1717386722420,2.62983,3802.6,3802.0,0.24628285]
[1717386722923,0.56855673,3802.5,3802.0,0.24628285]
[1717386723113,2.62983,3802.6,3802.0,0.24628285]
[1717386724107,2.62992,3802.4,3802.0,0.24628285]
[1717386726082,2.62966,3802.8,3802.0,0.55922113]
[1717386726286,2.62966,3802.8,3802.1,2.302]
[1717386726729,2.62966,3802.8,3802.2,0.24712854]
[1717386729543,2.62937,3803.2,3802.7,0.473]
[1717386730040,2.62909,3803.6,3802.9,2.9107]
[1717386730352,2.62909,3803.6,3803.0,0.55]
[1717386730530,0.473,3803.9,3803.0,0.79686603]
[1717386730730,1.04135598,3803.9,3803.0,0.79686603]
[1717386731651,0.473,3803.8,3803.0,0.79686603]
[1717386736028,2.62921,3803.5,3803.0,0.24686603]
[1717386736354,0.56837539,3803.4,3803.0,0.24686603]
[1717386736540,0.56837539,3803.4,3802.6,2.367]
[1717386736759,1.04137539,3803.4,3803.1,0.24622204]
[1717386736961,1.04137539,3803.4,3802.6,2.367]
[1717386737174,1.04137539,3803.4,3803.2,0.24621518]
[1717386737379,1.40843393,3803.4,3802.6,2.367]
[1717386737578,1.04137539,3803.4,3803.3,0.24620832]
[1717386737743,1.04137539,3803.4,3802.6,2.367]
[1717386738077,1.04137539,3803.4,3802.7,0.24624947]
[1717386739746,0.473,3803.2,3802.4,2.411]
[1717386739949,2.62957,3802.9,3802.8,0.24624261]
[1717386740177,2.62957,3802.9,3802.3,2.411]
[1717386740364,2.62957,3802.9,3802.8,0.24624261]
[1717386740563,3.19806633,3802.9,3802.3,2.411]
[1717386740775,2.62957,3802.9,3802.8,0.24644653]
[1717386740939,3.19806622,3802.9,3802.3,2.411]
[1717386741138,2.62957,3802.9,3802.8,0.24644653]
[1717386741343,2.62957,3802.9,3802.3,2.411]
[1717386741545,2.62957,3802.9,3802.8,0.24656307]
[1717386741858,3.19806581,3802.9,3802.8,0.24656307]
[1717386742043,3.19806581,3802.9,3802.3,2.411]
[1717386742244,2.62957,3802.9,3802.3,2.411]
[1717386742457,2.62957,3802.9,3802.4,0.24659051]
[1717386744699,2.62957,3802.9,3802.3,2.411]
[1717386745072,2.62957,3802.9,3802.4,0.24669978]
[1717386745769,2.62957,3802.9,3802.3,2.411]
[1717386746110,2.62957,3802.9,3802.4,0.24669978]
[1717386746610,2.62957,3802.9,3802.3,2.411]
[1717386746780,2.62957,3802.9,3802.4,0.24669978]
[1717386747101,2.62957,3802.9,3802.3,2.411]
[1717386747518,2.62957,3802.9,3802.4,0.24669978]
[1717386747808,0.473,3802.8,3802.3,2.411]
[1717386748014,0.473,3802.8,3802.4,0.24671799]
[1717386748015,0.473,3802.6,3802.4,0.24671799]
[1717386748208,2.62977,3802.7,3801.8,2.9975]
[1717386748367,2.62977,3802.7,3801.9,0.2467523]
[1717386750389,2.62977,3802.7,3801.9,0.88151053]
[1717386750722,2.62977,3802.7,3801.9,1.35451053]
[1717386752631,2.62977,3802.7,3801.9,0.88151053]
[1717386756938,0.473,3802.5,3801.9,0.2467523]
[1717386757132,0.473,3802.0,3801.9,0.2467523]
[1717386757437,3.10319,3802.1,3801.5,2.3528]
[1717386757642,2.63019,3802.1,3801.9,0.23044539]
[1717386757842,2.63019,3802.1,3801.5,2.3528]
[1717386758538,2.63019,3802.1,3801.6,0.23046598]
[1717386760849,3.10319,3802.1,3801.6,0.23046598]
[1717386761043,3.413509,3802.1,3801.6,0.23046598]
[1717386761222,3.413509,3802.1,3801.7,0.23045911]
[1717386761564,3.413509,3802.1,3801.2,2.379]
[1717386761709,3.10319,3802.1,3801.2,2.379]
[1717386762042,2.63019,3802.1,3801.4,2.379]
[1717386762542,2.63019,3802.1,3801.5,0.23047284]
[1717386764155,2.63019,3802.1,3801.6,2.4719]
[1717386764641,2.63019,3802.1,3801.7,0.23045911]
[1717386765206,7.28,3802.7,3801.7,0.23045911]
[1717386765207,2.62984,3802.5,3801.7,0.23045911]
[1717386765410,0.473,3802.4,3801.7,0.23045911]
[1717386766423,2.62984,3802.5,3801.9,0.473]
[1717386766638,7.28,3802.7,3802.4,2.4066]
[1717386767011,7.28,3802.7,3802.5,0.23040422]
[1717386767213,7.28,3802.7,3802.4,2.4066]
[1717386767647,7.28,3802.7,3802.5,0.23040422]
[1717386767918,7.28,3802.7,3802.4,2.4066]
[1717386768118,7.28,3802.7,3802.6,0.23039736]
[1717386768429,7.28,3802.7,3802.4,2.69456]
[1717386768430,2.62955,3803.0,3802.4,2.69456]
[1717386769046,2.62955,3803.0,3802.5,0.23025215]
[1717386769437,2.62955,3803.0,3802.4,2.69456]
[1717386769644,2.62955,3803.0,3802.6,0.23024529]
[1717386769966,2.62955,3803.0,3802.7,0.23023843]
[1717386770332,2.62955,3803.0,3802.4,2.69456]
[1717386770564,2.62955,3803.0,3802.8,0.23023157]
[1717386770880,2.62955,3803.0,3802.9,0.23022471]
[1717386771078,2.62955,3803.0,3802.5,0.316756]
[1717386771397,2.62955,3803.0,3802.9,0.23022471]
[1717386771558,3.19801597,3803.0,3802.4,2.4066]
[1717386771755,2.62955,3803.0,3802.9,0.23022471]
[1717386771978,2.62955,3803.0,3802.4,2.69456]
[1717386772196,2.62955,3803.0,3802.9,0.23022471]
[1717386772362,9.90923,3803.4,3802.5,0.473]
[1717386772560,0.56840537,3803.3,3802.9,0.23022471]
[1717386772777,0.56840537,3803.3,3802.5,0.473]
[1717386773099,0.56841556,3803.3,3802.6,0.316756]
[1717386773865,0.56841556,3803.3,3802.8,2.3306]
[1717386774069,9.90923,3803.4,3802.8,2.3306]
[1717386774070,7.28,3803.4,3802.8,2.3306]
[1717386774283,7.28,3803.4,3802.9,0.70322471]
[1717386777455,7.28,3803.4,3802.9,0.23022471]
[1717386777878,0.473,3803.7,3802.9,0.23022471]
[1717386778369,2.62913,3803.6,3802.9,0.23022471]
[1717386778573,1.04140844,3803.5,3802.9,0.23022471]
[1717386778775,2.62924,3803.4,3802.5,2.3527]
[1717386778964,2.62924,3803.4,3803.0,0.22993184]
[1717386779263,2.62924,3803.4,3803.1,0.22971501]
[1717386779464,0.473,3803.3,3802.5,2.3527]
[1717386779664,0.473,3803.3,3802.6,0.22974931]
[1717386780477,2.62924,3803.4,3802.6,0.22974931]
[1717386783396,2.62924,3803.4,3802.6,0.70274931]
[1717386784163,2.62924,3803.4,3802.6,0.22974931]
[1717386785696,2.62924,3803.4,3802.6,0.70274931]
[1717386787492,2.62924,3803.4,3802.6,1.27127924]
[1717386787864,2.62924,3803.4,3802.6,0.70274931]
[1717386788196,2.62924,3803.4,3802.6,0.22974931]
[1717386791190,0.56845161,3803.3,3802.6,0.22974931]
[1717386791390,2.62924,3803.4,3802.7,0.473]
[1717386791912,2.62924,3803.4,3802.9,2.4357]
[1717386792416,2.62924,3803.4,3803.0,0.2289411]
[1717386794002,0.56843134,3803.3,3803.0,0.2289411]
[1717386794403,2.62924,3803.4,3803.0,0.2289411]
[1717386796212,0.5683853,3803.3,3803.0,0.2289411]
[1717386796505,2.62924,3803.4,3803.0,0.2289411]
[1717386796874,0.5683891,3803.3,3803.0,0.2289411]
[1717386797485,0.5683891,3803.8,3803.1,2.278]
[1717386797810,0.473,3803.7,3803.1,2.278]
[1717386797971,0.473,3803.7,3803.2,0.22892738]
[1717386798512,2.62901,3803.7,3803.2,0.22892738]
[1717386798684,2.62917,3803.5,3802.7,3.10266]
[1717386798883,2.62932,3803.3,3802.8,0.22895481]
[1717386799089,0.56839165,3803.2,3802.6,0.473]
[1717386799280,0.56839165,3803.2,3802.9,0.22886108]
[1717386799471,0.56839165,3803.2,3802.6,0.473]
[1717386799670,0.56839165,3803.2,3802.7,0.22889651]
[1717386801020,0.56844448,3803.2,3802.7,0.22889651]
[1717386801443,0.56844446,3803.2,3802.7,0.22889651]
[1717386801757,0.56844446,3803.2,3802.8,0.22891139]
[1717386801929,0.56844446,3803.2,3802.4,2.7704]
[1717386802214,0.56844446,3803.2,3802.9,0.22890453]
[1717386802384,0.56844446,3803.2,3802.4,2.7704]
[1717386802584,0.56844446,3803.2,3803.0,0.22889767]
[1717386802798,0.56844446,3803.2,3802.4,2.7704]
[1717386803045,0.56844446,3803.2,3803.1,0.22889081]
[1717386803202,0.56844446,3803.2,3802.4,2.7704]
[1717386803539,0.56844446,3803.2,3803.1,0.22898131]
[1717386803751,0.56844446,3803.2,3802.5,0.22903695]
[1717386804036,0.56844446,3803.2,3803.1,0.2289958]
[1717386804267,0.56844446,3803.2,3802.4,2.7704]
[1717386804404,0.56844446,3803.2,3803.1,0.2289958]
[1717386804589,0.56844446,3803.2,3802.4,2.7704]
[1717386804787,0.56844446,3803.2,3802.5,0.540036]
[1717386805006,0.56844446,3803.2,3802.5,0.76904761]
[1717386806821,0.56844446,3803.2,3802.6,2.2564]
[1717386807227,0.56844446,3803.2,3802.7,0.22899427]
[1717386808077,2.62932,3803.3,3802.7,0.22899427]
[1717386808345,0.56844122,3803.2,3802.7,0.22899427]
[1717386814500,0.56844122,3803.2,3802.8,2.3445]
[1717386814741,0.56844122,3803.2,3802.9,0.22891902]
[1717386815095,1.04144122,3803.7,3802.9,0.22891902]
[1717386815295,1.04144122,3803.7,3802.8,2.3445]
[1717386815613,1.04144122,3803.7,3802.9,0.22891902]
[1717386817205,2.62913,3803.6,3802.9,0.22891902]
[1717386817403,0.84005712,3803.5,3802.9,0.22891902]
[1717386817606,2.62923,3803.4,3802.9,0.22891902]
[1717386818131,0.56844122,3803.3,3802.9,0.22891902]
[1717386822519,0.56844122,3803.3,3802.8,2.3445]
[1717386822717,0.56844122,3803.3,3802.9,0.22807577]
[1717386822960,0.56844122,3803.3,3802.8,2.3445]
[1717386823156,0.56844122,3803.3,3802.9,0.22807577]
[1717386823314,0.56844122,3803.3,3802.8,2.3445]
[1717386823661,0.56844122,3803.3,3802.9,0.22807577]
[1717386823968,0.56844122,3803.3,3802.8,2.3445]
[1717386824132,0.56844122,3803.3,3802.9,0.22807577]
[1717386824336,0.56844122,3803.3,3802.8,2.3445]
[1717386824547,0.56844122,3803.3,3802.9,0.22807577]
[1717386824871,0.56844122,3803.3,3802.8,2.3445]
[1717386825258,0.56844122,3803.3,3802.9,0.22807577]
[1717386825616,0.56844122,3803.3,3802.8,2.3445]
[1717386826133,0.56844122,3803.3,3802.9,0.22807577]
[1717386826333,0.56844122,3803.3,3802.8,2.3445]
[1717386826535,0.56844122,3803.3,3803.0,0.22806891]
[1717386826732,0.56844122,3803.3,3802.8,2.3445]
[1717386826987,2.62941,3803.2,3803.1,0.22806205]
[1717386827190,3.60164205,3803.2,3802.5,2.8543]
[1717386827370,2.62941,3803.2,3803.1,0.22806205]
[1717386827572,3.19786117,3803.2,3802.5,2.8543]
[1717386827772,0.56845117,3803.1,3802.5,2.8543]
[1717386828812,0.56843685,3803.1,3802.5,2.8543]
[1717386829370,0.56843685,3803.1,3802.5,2.3813]
[1717386829578,2.62952,3803.0,3802.5,2.3813]
[1717386829770,0.56843685,3802.9,3802.5,2.3813]
[1717386831168,0.56844321,3802.9,3802.5,2.3813]
[1717386832610,0.56844658,3802.9,3802.5,2.3813]
[1717386838578,2.62952,3803.0,3802.5,2.3813]
[1717386838779,0.5684472,3802.9,3802.6,0.22823027]
[1717386840213,0.56845266,3802.9,3802.6,0.22823027]
[1717386841323,2.62952,3803.0,3802.6,0.22823027]
[1717386841521,0.56843837,3802.9,3802.6,0.22823027]
[1717386842025,0.56843837,3802.9,3802.6,1.0094833]
[1717386842441,2.62952,3803.0,3802.6,0.5364833]
[1717386844482,2.62952,3803.0,3802.6,0.22823027]
[1717386844685,0.56842037,3802.9,3802.6,0.22823027]
[1717386847506,0.56842037,3803.3,3802.6,0.22823027]
[1717386847828,0.56842037,3803.3,3802.5,2.3813]
[1717386848725,0.473,3802.7,3802.6,0.22824114]
[1717386849022,2.62978,3802.6,3801.5,2.3557]
[1717386849335,0.473,3802.4,3801.6,0.2282989]
[1717386851793,2.62999,3802.3,3801.6,0.2282989]
[1717386852129,0.56859749,3802.2,3801.6,0.2282989]
[1717386853032,2.63014,3802.1,3801.6,0.2282989]
[1717386853898,2.63027,3801.9,3801.6,0.2282989]
[1717386854318,2.63027,3801.9,3801.4,2.3315]
[1717386854490,2.63027,3801.9,3801.7,0.22864012]
[1717386854693,2.63027,3801.9,3801.4,2.3315]
[1717386854895,2.63027,3801.9,3801.8,0.22863326]
[1717386855128,2.9716284,3801.9,3801.4,2.3315]
[1717386855334,2.63027,3801.9,3801.8,0.2286876]
[1717386855640,2.63027,3801.9,3801.4,2.3315]
[1717386855843,2.63027,3801.9,3801.5,0.22870819]
[1717386856597,2.6304,3801.7,3801.0,2.3426]
[1717386856908,2.6304,3801.7,3801.1,0.22873564]
[1717386858748,2.63074,3801.2,3801.1,0.22873564]
[1717386859102,2.63074,3801.2,3800.2,2.9437]
[1717386859302,2.63074,3801.2,3800.4,0.473]
[1717386859500,2.63074,3801.2,3800.4,2.9239]
[1717386859738,2.63074,3801.2,3800.5,0.22883118]
[1717386865073,2.63074,3801.2,3800.5,2.48573118]
[1717386869030,2.631,3800.9,3800.5,0.22883118]
[1717386869342,0.473,3800.6,3800.0,2.2891]
[1717386869537,0.473,3800.7,3800.1,0.22187118]
[1717386870077,2.63118,3800.6,3800.1,0.22187118]
[1717386874873,2.63118,3800.6,3800.0,2.2891]
[1717386876570,2.63118,3800.6,3799.7,2.2833]
[1717386876878,2.63118,3800.6,3799.8,0.22207201]
[1717386882389,3.10437,3800.3,3799.8,0.22207201]
[1717386882692,3.10437,3800.3,3799.7,2.2833]
[1717386882890,3.10437,3800.3,3799.9,0.22225979]
[1717386883194,3.10437,3800.3,3799.8,0.22226666]
[1717386883396,3.10437,3800.3,3800.0,0.22225292]
[1717386883698,2.63137,3800.3,3800.1,0.22224605]
[1717386884185,2.63137,3800.3,3800.2,0.22223918]
[1717386884387,2.63137,3800.3,3799.7,2.2833]
[1717386884769,2.63137,3800.3,3799.8,0.22226666]
[1717386884957,2.63137,3800.3,3799.7,2.2833]
[1717386885158,2.63137,3800.3,3799.8,0.22226666]
[1717386885490,2.63137,3800.3,3799.7,2.2833]
[1717386885695,2.63137,3800.3,3799.9,0.22225979]
[1717386885862,2.63137,3800.3,3799.8,0.22226666]
[1717386886196,2.63137,3800.3,3799.9,0.22225979]
[1717386886906,2.63137,3800.3,3800.0,0.22225292]
[1717386887280,2.63137,3800.3,3799.7,2.2833]
[1717386887800,2.63137,3800.3,3799.8,0.22226666]
[1717386888000,2.63137,3800.3,3799.7,2.2833]
[1717386888211,2.63137,3800.3,3799.9,0.22225979]
[1717386888413,2.63137,3800.3,3799.7,2.2833]
[1717386888629,2.63137,3800.3,3799.8,0.22226666]
[1717386888788,3.10437,3800.3,3799.7,2.2833]
[1717386889130,3.10437,3800.3,3799.8,0.22226666]
[1717386889296,2.63137,3800.3,3799.8,0.22226666]
[1717386889504,2.63137,3800.3,3799.7,2.2833]
[1717386889731,2.63137,3800.3,3799.9,0.22225979]
[1717386889900,2.63137,3800.3,3799.8,0.22226666]
[1717386890227,2.63137,3800.3,3799.9,0.22225979]
[1717386890431,2.63137,3800.3,3799.7,2.2833]
[1717386890591,2.63137,3800.3,3799.8,0.22226666]
[1717386890793,2.63137,3800.3,3799.7,2.2833]
[1717386890999,2.63137,3800.3,3799.8,0.22226666]
[1717386891359,2.63137,3800.3,3799.7,2.2833]
[1717386891555,2.63137,3800.3,3799.9,0.22225979]
[1717386891842,2.63137,3800.3,3800.0,0.22225292]
[1717386891997,2.63137,3800.3,3799.7,2.2833]
[1717386892202,2.63137,3800.3,3799.8,0.22226666]
[1717386892451,2.63137,3800.3,3799.7,2.2833]
[1717386892598,2.63137,3800.3,3799.8,0.22226666]
[1717386892801,2.63137,3800.3,3799.7,2.2833]
[1717386893151,2.63137,3800.3,3799.9,0.22225979]
[1717386893302,2.63137,3800.3,3799.8,0.22226666]
[1717386893625,2.63137,3800.3,3799.9,0.22225979]
[1717386893833,2.63137,3800.3,3799.7,2.2833]
[1717386894028,2.63137,3800.3,3800.0,0.22225292]
[1717386894341,2.63137,3800.3,3799.7,2.2833]
[1717386894630,2.63137,3800.3,3799.7,2.822126]
[1717386894811,2.63137,3800.3,3799.8,0.22226666]
[1717386894997,2.63137,3800.3,3799.7,2.822126]
[1717386895189,2.63137,3800.3,3799.9,0.22241482]
[1717386895394,2.63137,3800.3,3799.7,2.822126]
[1717386895594,2.63137,3800.3,3800.0,0.22240796]
[1717386895795,2.63137,3800.3,3799.7,2.2833]
[1717386896130,2.63137,3800.3,3800.1,0.22240109]
[1717386896320,2.63137,3800.3,3799.7,2.2833]
[1717386896509,2.63137,3800.3,3800.2,0.22239422]
[1717386896709,2.63137,3800.3,3799.7,2.2833]
[1717386896910,2.63137,3800.3,3800.2,0.22239422]
[1717386897112,2.63137,3800.3,3799.7,2.2833]
[1717386897318,2.63137,3800.3,3800.2,0.22239422]
[1717386897514,2.63137,3800.3,3799.7,3.295126]
[1717386897730,2.63137,3800.3,3800.2,0.22242666]
[1717386897900,2.63137,3800.3,3799.7,2.7563]
[1717386898101,2.63137,3800.3,3800.2,0.22242666]
[1717386898741,2.63137,3800.3,3799.7,2.7563]
[1717386899038,2.63137,3800.3,3799.8,0.27563]
[1717386899244,2.63137,3800.3,3799.8,0.49808414]
[1717386900438,2.63112,3800.7,3799.8,0.49808414]
[1717386900733,0.56883506,3800.6,3799.8,0.22245414]
[1717386902139,0.56883506,3800.6,3799.9,2.2866]
[1717386902444,0.56883506,3800.6,3800.0,0.22244401]
[1717386904568,0.56883506,3800.6,3800.3,0.473]
[1717386904840,0.56879281,3801.0,3800.4,2.64401653]
[1717386905028,0.56879281,3801.0,3800.5,0.473]
[1717386905232,0.56879281,3801.0,3800.5,0.69524743]
[1717386906210,0.56879281,3801.0,3800.5,0.22224743]
[1717386906413,0.56879281,3801.0,3800.4,2.4216]
[1717386906639,0.56879281,3801.0,3800.6,0.22224056]
[1717386906850,0.56879281,3801.0,3800.4,2.4216]
[1717386907025,2.63099,3800.9,3800.0,5.05303]
[1717386907355,0.56879281,3800.8,3800.5,0.22224743]
[1717386907541,0.56879281,3800.8,3800.0,5.05303]
[1717386908147,0.56879281,3800.8,3800.1,0.2222749]
[1717386909674,2.63113,3800.7,3800.1,0.2222749]
[1717386909854,0.56879281,3800.6,3800.1,0.2222749]
[1717386910056,0.56879281,3800.6,3799.7,2.3149]
[1717386910057,1.04179281,3800.6,3799.7,2.3149]
[1717386910211,2.63123,3800.5,3800.2,0.22221396]
[1717386910405,3.03526011,3800.5,3799.7,2.3149]
[1717386910663,2.63123,3800.5,3800.3,0.22220709]
[1717386910956,2.63123,3800.5,3799.7,2.3149]
[1717386911240,0.56885549,3800.4,3799.8,0.22224144]
[1717386911542,2.63137,3800.3,3799.8,0.22224144]
[1717386912041,0.5688802,3800.2,3799.9,0.22223457]
[1717386912247,2.63137,3800.3,3799.5,4.98319]
[1717386912421,2.63137,3800.3,3800.0,0.2222277]
[1717386912741,2.63137,3800.3,3799.5,4.98319]
[1717386912954,2.63137,3800.3,3800.1,0.22222083]
[1717386913250,2.63137,3800.3,3800.2,0.22221396]
[1717386913447,3.20024365,3800.3,3799.5,2.3513]
[1717386913680,0.56887365,3800.2,3799.5,2.3513]
[1717386913965,2.63137,3800.3,3799.6,0.22225518]
[1717386914259,0.56888496,3800.2,3799.6,0.22225518]
[1717386916260,0.56891355,3800.2,3799.6,0.22225518]
[1717386916982,2.63178,3799.7,3799.6,0.22225518]
[1717386917318,3.20073099,3799.7,3798.9,2.3811]
[1717386917551,2.63178,3799.7,3799.6,0.22261931]
[1717386917752,3.20076502,3799.7,3798.9,2.3811]
[1717386918055,2.63178,3799.7,3798.9,2.3811]
[1717386918260,2.63178,3799.7,3799.0,0.22266776]
[1717386919046,2.63178,3799.7,3799.1,0.473]
[1717386919370,2.63178,3799.7,3799.1,0.69576186]
[1717386919877,2.63178,3799.7,3799.1,0.22276186]
[1717386920997,2.63178,3799.7,3798.9,2.3811]
[1717386921169,2.63178,3799.7,3799.2,0.22272974]
[1717386921378,2.63178,3799.7,3798.9,2.3811]
[1717386921881,2.63178,3799.7,3799.0,0.69579759]
[1717386922368,2.63178,3799.7,3799.0,0.22279759]
[1717386925527,2.942258,3799.7,3799.0,0.22279759]
[1717386928273,2.63178,3799.7,3799.0,0.22279759]
[1717386933372,2.63203,3799.4,3799.0,0.22279759]
[1717386933570,3.10503,3799.4,3799.0,0.22279759]
[1717386933751,2.63203,3799.4,3798.5,2.4653]
[1717386933945,2.63203,3799.4,3799.1,0.22303595]
[1717386934138,2.63203,3799.4,3798.6,0.473]
[1717386934463,2.63203,3799.4,3798.7,0.22306344]
[1717386947179,0.5690056,3799.3,3798.7,0.22306344]